fUST/lending_fUST_20250708
["ID","MTS","AMOUNT","RATE_DAILY","PERIOD"]
[370328045,1751961054753,-460.0,0.00019726,2]
[370328046,1751961054763,-460.0,0.00019726,2]
[370328047,1751961054773,-460.0,0.00019726,2]
[370328048,1751961054782,-461.19816905,0.00019726,2]
[370328049,1751961054793,-460.0,0.00019726,2]
[370328050,1751961054803,-460.0,0.00019726,2]
[370328051,1751961054812,-460.0,0.00019726,2]
[370328052,1751961054822,-460.0,0.00019726,2]
[370328053,1751961054831,-405.58013939,0.00019726,2]
[370328054,1751961054840,-460.0,0.00019726,2]
[370328055,1751961054850,-165.265063,0.00019726,2]
[370328056,1751961054859,-165.265063,0.00019726,2]
[370328057,1751961054868,-165.265063,0.00019726,2]
[370328058,1751961054878,-165.265063,0.00019726,2]
[370328059,1751961054889,-460.0,0.00019726,2]
[370328060,1751961054898,-460.0,0.00019726,2]
[370328061,1751961054908,-460.0,0.00019726,2]
[370328062,1751961054917,-460.0,0.00019726,2]
[370328063,1751961054927,-460.0,0.00019726,2]
[370328064,1751961054937,-460.0,0.00019726,2]
[370328065,1751961054947,-460.0,0.00019726,2]
[370328066,1751961054956,-460.0,0.00019726,2]
[370328067,1751961054965,-460.0,0.00019726,2]
[370328068,1751961054974,-460.0,0.00019726,2]
[370328069,1751961054983,-460.0,0.00019726,2]
[370328070,1751961054993,-460.0,0.00019726,2]
[370328071,1751961055003,-460.0,0.00019726,2]
[370328072,1751961055013,-410.93133337,0.00019726,2]
[370328073,1751961055023,-460.0,0.00019726,2]
[370328074,1751961055032,-460.0,0.00019726,2]
[370328075,1751961055042,-460.0,0.00019726,2]
[370328076,1751961055053,-460.0,0.00019726,2]
[370328077,1751961055063,-460.0,0.00019726,2]
[370328078,1751961055072,-460.0,0.00019726,2]
[370328079,1751961055083,-460.0,0.00019726,2]
[370328080,1751961055093,-460.0,0.00019726,2]
[370328081,1751961055103,-460.0,0.00019726,2]
[370328082,1751961055114,-460.0,0.00019726,2]
[370328083,1751961055128,-460.0,0.00019726,2]
[370328084,1751961055139,-460.0,0.00019726,2]
[370328085,1751961055149,-460.0,0.00019726,2]
[370328086,1751961055159,-405.56908442,0.00019726,2]
[370328087,1751961055168,-460.0,0.00019726,2]
[370328088,1751961055177,-460.0,0.00019726,2]
[370328089,1751961055187,-500.0,0.00019726,2]
[370328090,1751961055196,-460.0,0.00019726,2]
[370328091,1751961055205,-347.94,0.00019726,2]
[370328092,1751961055214,-460.0,0.00019726,2]
[370328093,1751961055224,-502.61726036,0.00019726,2]
[370328094,1751961055233,-543.5376811,0.00019726,2]
[370328095,1751961055243,-460.0,0.00019726,2]
[370328096,1751961055252,-460.0,0.00019726,2]
[370328097,1751961055262,-460.0,0.00019726,2]
[370328098,1751961055272,-1306.04,0.00019726,2]
[370328099,1751961055281,-460.0,0.00019726,2]
[370328100,1751961055290,-460.0,0.00019726,2]
[370328101,1751961055300,-460.0,0.00019726,2]
[370328102,1751961055309,-460.0,0.00019726,2]
[370328103,1751961055319,-460.0,0.00019726,2]
[370328104,1751961055329,-460.0,0.00019726,2]
[370328105,1751961055338,-460.0,0.00019726,2]
[370328106,1751961055349,-460.0,0.00019726,2]
[370328107,1751961055360,-460.0,0.00019726,2]
[370328108,1751961055370,-460.0,0.00019726,2]
[370328109,1751961055380,-460.0,0.00019726,2]
[370328110,1751961055389,-460.0,0.00019726,2]
[370328111,1751961055398,-460.0,0.00019726,2]
[370328112,1751961055408,-460.0,0.00019726,2]
[370328113,1751961055417,-460.0,0.00019726,2]
[370328114,1751961055426,-549.73,0.00019726,2]
[370328115,1751961055436,-460.0,0.00019726,2]
[370328116,1751961055445,-717.39,0.00019726,2]
[370328117,1751961055454,-633.95454159,0.00019726,2]
[370328118,1751961055464,-460.0,0.00019726,2]
[370328119,1751961055474,-412.26808603,0.00019726,2]
[370328120,1751961055483,-460.0,0.00019726,2]
[370328121,1751961055492,-460.0,0.00019726,2]
[370328122,1751961055502,-460.0,0.00019726,2]
[370328123,1751961055511,-257.61011329,0.00019726,2]
[370328124,1751961055521,-460.0,0.00019726,2]
[370328125,1751961055530,-460.0,0.00019726,2]
[370328126,1751961055540,-460.0,0.00019726,2]
[370328127,1751961055550,-460.0,0.00019726,2]
[370328128,1751961055559,-504.66711692,0.00019726,2]
[370328129,1751961055569,-460.0,0.00019726,2]
[370328130,1751961055578,-2168.19,0.00019726,2]
[370328131,1751961055587,-460.0,0.00019726,2]
[370328132,1751961055597,-566.91454657,0.00019726,2]
[370328133,1751961055606,-460.0,0.00019726,2]
[370328134,1751961055616,-460.0,0.00019726,2]
[370328135,1751961055625,-1490.25,0.00019726,2]
[370328136,1751961055637,-460.0,0.00019726,2]
[370328137,1751961055646,-460.0,0.00019726,2]
[370328138,1751961055656,-460.0,0.00019726,2]
[370328139,1751961055666,-460.0,0.00019726,2]
[370328140,1751961055676,-460.0,0.00019726,2]
[370328141,1751961055688,-460.0,0.00019726,2]
[370328142,1751961055697,-460.0,0.00019726,2]
[370328143,1751961055707,-460.0,0.00019726,2]
[370328144,1751961055717,-460.0,0.00019726,2]
[370328145,1751961055727,-460.0,0.00019726,2]
[370328146,1751961055736,-460.0,0.00019726,2]
[370328147,1751961055747,-542.39166831,0.00019726,2]
[370328148,1751961055757,-1157.31,0.00019726,2]
[370328149,1751961055767,-460.0,0.00019726,2]
[370328150,1751961055777,-460.0,0.00019726,2]
[370328151,1751961055787,-549.9373962,0.00019726,2]
[370328152,1751961055797,-460.0,0.00019726,2]
[370328153,1751961055806,-460.0,0.00019726,2]
[370328154,1751961055815,-460.0,0.00019726,2]
[370328155,1751961055825,-460.0,0.00019726,2]
[370328156,1751961055834,-587.67676591,0.00019726,2]
[370328157,1751961055843,-460.0,0.00019726,2]
[370328158,1751961055853,-460.0,0.00019726,2]
[370328159,1751961055863,-449.16749657,0.00019726,2]
[370328160,1751961055872,-572.89,0.00019726,2]
[370328161,1751961055881,-460.0,0.00019726,2]
[370328162,1751961055890,-460.0,0.00019726,2]
[370328163,1751961055900,-460.0,0.00019726,2]
[370328164,1751961055909,-460.0,0.00019726,2]
[370328165,1751961055918,-460.0,0.00019726,2]
[370328166,1751961055927,-553.95712316,0.00019726,2]
[370328167,1751961055938,-1424.83,0.00019726,2]
[370328168,1751961055948,-205.36,0.00019726,2]
[370328169,1751961055957,-460.0,0.00019726,2]
[370328170,1751961055967,-460.0,0.00019726,2]
[370328171,1751961055976,-460.0,0.00019726,2]
[370328172,1751961055986,-460.0,0.00019726,2]
[370328173,1751961055996,-460.0,0.00019726,2]
[370328174,1751961056005,-460.0,0.00019726,2]
[370328175,1751961056015,-460.0,0.00019726,2]
[370328176,1751961056026,-460.0,0.00019726,2]
[370328177,1751961056036,-1692.64,0.00019726,2]
[370328178,1751961056047,-1201.15,0.00019726,2]
[370328179,1751961056056,-521.63832986,0.00019726,2]
[370328180,1751961056065,-460.0,0.00019726,2]
[370328181,1751961056075,-460.0,0.00019726,2]
[370328182,1751961056084,-774.89,0.00019726,2]
[370328183,1751961056095,-460.0,0.00019726,2]
[370328184,1751961056105,-460.0,0.00019726,2]
[370328185,1751961056119,-460.0,0.00019726,2]
[370328186,1751961056129,-460.0,0.00019726,2]
[370328187,1751961056138,-460.0,0.00019726,2]
[370328188,1751961056148,-460.0,0.00019726,2]
[370328189,1751961056159,-460.0,0.00019726,2]
[370328190,1751961056169,-460.0,0.00019726,2]
[370328191,1751961056178,-654.49,0.00019726,2]
[370328192,1751961056188,-460.0,0.00019726,2]
[370328193,1751961056198,-247.575572,0.00019726,2]
[370328194,1751961056207,-460.0,0.00019726,2]
[370328195,1751961056217,-460.0,0.00019726,2]
[370328196,1751961056227,-460.0,0.00019726,2]
[370328197,1751961056237,-860.14,0.00019726,2]
[370328198,1751961056246,-460.0,0.00019726,2]
[370328199,1751961056255,-2037.56,0.00019726,2]
[370328200,1751961056264,-540.0,0.00019726,2]
[370328201,1751961056273,-460.0,0.00019726,2]
[370328202,1751961056282,-460.0,0.00019726,2]
[370328203,1751961056292,-460.0,0.00019726,2]
[370328204,1751961056301,-460.0,0.00019726,2]
[370328205,1751961056310,-460.0,0.00019726,2]
[370328206,1751961056320,-460.0,0.00019726,2]
[370328207,1751961056329,-833.4,0.00019726,2]
[370328208,1751961056339,-460.0,0.00019726,2]
[370328209,1751961056348,-460.0,0.00019726,2]
[370328210,1751961056358,-460.0,0.00019726,2]
[370328211,1751961056367,-460.0,0.00019726,2]
[370328212,1751961056377,-593.8,0.00019726,2]
[370328213,1751961056386,-460.0,0.00019726,2]
[370328214,1751961056395,-460.0,0.00019726,2]
[370328215,1751961056404,-556.54,0.00019726,2]
[370328216,1751961056413,-460.0,0.00019726,2]
[370328217,1751961056423,-460.0,0.00019726,2]
[370328218,1751961056432,-1898.62,0.00019726,2]
[370328219,1751961056442,-1129.21,0.00019726,2]
[370328220,1751961056452,-460.0,0.00019726,2]
[370328221,1751961056463,-543.74128595,0.00019726,2]
[370328222,1751961056472,-460.0,0.00019726,2]
[370328223,1751961056482,-460.0,0.00019726,2]
[370328224,1751961056494,-460.0,0.00019726,2]
[370328225,1751961056504,-622.55,0.00019726,2]
[370328226,1751961056513,-735.8,0.00019726,2]
[370328227,1751961056524,-460.0,0.00019726,2]
[370328228,1751961056533,-574.99,0.00019726,2]
[370328229,1751961056543,-460.0,0.00019726,2]
[370328230,1751961056553,-460.0,0.00019726,2]
[370328231,1751961056563,-460.0,0.00019726,2]
[370328232,1751961056574,-465.88826976,0.00019726,2]
[370328233,1751961056584,-460.0,0.00019726,2]
[370328234,1751961056593,-898.61,0.00019726,2]
[370328235,1751961056602,-667.87,0.00019726,2]
[370328236,1751961056612,-460.0,0.00019726,2]
[370328237,1751961056621,-460.0,0.00019726,2]
[370328238,1751961056631,-460.0,0.00019726,2]
[370328239,1751961056642,-460.0,0.00019726,2]
[370328240,1751961056652,-460.0,0.00019726,2]
[370328241,1751961056662,-460.0,0.00019726,2]
[370328242,1751961056671,-712.02,0.00019726,2]
[370328243,1751961056774,-460.0,0.00019726,2]
[370328244,1751961056784,-342.827,0.00019747,2]
[370328245,1751961056793,-178.49105758,0.00019747,2]
[370328246,1751961056803,-163.683886,0.000198,2]
[370328247,1751961056812,-163.683886,0.000198,2]
[370328248,1751961056822,-202.853009,0.000198,2]
[370328249,1751961056831,-202.853009,0.000198,2]
[370328250,1751961056840,-21122.58167007,0.000198,2]
[370328251,1751961056850,-967.0,0.00019805,2]
[370328252,1751961056860,-646.0,0.00019805,2]
[370328253,1751961056870,-2153.0,0.00019805,2]
[370328254,1751961056879,-151.0,0.00019854,2]
[370328255,1751961056888,-215.39348123,0.00019899,2]
[370328256,1751961056898,-1000.0,0.000199,2]
[370328257,1751961056907,-1000.0,0.000199,2]
[370328258,1751961056916,-1000.0,0.000199,2]
[370328259,1751961056926,-1000.0,0.000199,2]
[370328260,1751961056935,-816.32,0.000199,2]
[370328261,1751961056944,-1000.0,0.000199,2]
[370328262,1751961056953,-1000.0,0.000199,2]
[370328263,1751961056963,-1000.0,0.000199,2]
[370328264,1751961056973,-1000.0,0.000199,2]
[370328265,1751961056982,-165.265063,0.000199,2]
[370328266,1751961056992,-165.265063,0.000199,2]
[370328267,1751961057001,-1369.11012682,0.000199,2]
[370328268,1751961057010,-151.0,0.00019988,2]
[370328269,1751961057019,-151.0,0.00019988,2]
[370328270,1751961057028,-151.0,0.00019988,2]
[370328271,1751961057037,-263717.62345556,0.00019999,2]
[370328272,1751961057170,-38643.85189073,0.00019999,2]
[370328273,1751961057181,-538.16046026,0.00019999,2]
[370328274,1751961057193,-3494.56342047,0.00019999,2]
[370328275,1751961057205,-920.0,0.00019999,2]
[370328276,1751961057216,-4224.19265248,0.00019999,2]
[370328277,1751961254302,5000.0,0.00018001,2]
[370328279,1751961371772,334.835347,0.00017645,2]
[370328281,1751961618199,3093.6927706,0.00017771,2]
[370328282,1751961653253,5000.0,0.00018001,2]
[370328283,1751961863012,5000.0,0.00018001,2]
[370328284,1751962019164,-153.27196177,0.00018243,2]
[370328285,1751962024948,151.0,0.00018,2]
[370328286,1751962056228,896.75377949,0.00018,14]
[370328287,1751962072449,2712.44279422,0.00018001,2]
[370328339,1751962232007,-300.0,0.00018079,2]
[370328341,1751962232020,-300.0,0.00018079,2]
[370328343,1751962232030,-124.55529205,0.00018079,2]
[370328483,1751962238251,-1075.44470795,0.00018079,2]
[370328484,1751962238261,-342.71389067,0.0001808,2]
[370328490,1751962238325,-8752.50991379,0.0001808,2]
[370328498,1751962238400,-5987.1724603,0.0001808,2]
[370328501,1751962238412,-4957.81781365,0.0001808,2]
[370328508,1751962238476,-562.7876311,0.0001808,2]
[370328660,1751962240272,-978.22565323,0.0001808,2]
[370328661,1751962240285,-3318.77263726,0.0001808,2]
[370328662,1751962240294,-66362.92456556,0.00018676,2]
[370328663,1751962240303,-2374.2824818,0.000189,2]
[370328664,1751962240313,-991.43530717,0.00019077,2]
[370328665,1751962240323,-6097.86408239,0.00019078,2]
[370328666,1751962240332,-151.0,0.00019166,2]
[370328667,1751962240342,-151.0,0.00019166,2]
[370328668,1751962240352,-207.4,0.00019166,2]
[370328669,1751962240362,-151.97753372,0.00019166,2]
[370328670,1751962240371,-151.0,0.00019166,2]
[370328671,1751962240380,-298.60925501,0.00019166,2]
[370328672,1751962240391,-690.642,0.00019166,2]
[370328673,1751962240401,-216.66774486,0.00019166,2]
[370328674,1751962240410,-151.0,0.00019166,2]
[370328675,1751962240420,-500.0,0.00019166,2]
[370328676,1751962240434,-500.0,0.00019166,2]
[370328677,1751962240444,-500.0,0.00019166,2]
[370328678,1751962240454,-500.0,0.00019166,2]
[370328679,1751962240464,-500.0,0.00019166,2]
[370328680,1751962240473,-500.0,0.00019166,2]
[370328681,1751962240483,-500.0,0.00019166,2]
[370328682,1751962240493,-500.0,0.00019166,2]
[370328683,1751962240502,-500.0,0.00019166,2]
[370328684,1751962240512,-500.0,0.00019166,2]
[370328685,1751962240521,-500.0,0.00019166,2]
[370328686,1751962240531,-500.0,0.00019166,2]
[370328687,1751962240541,-500.0,0.00019166,2]
[370328688,1751962240550,-500.0,0.00019166,2]
[370328689,1751962240560,-500.0,0.00019166,2]
[370328690,1751962240570,-151.0,0.00019166,2]
[370328691,1751962240579,-500.0,0.00019166,2]
[370328692,1751962240588,-151.0,0.00019166,2]
[370328693,1751962240598,-151.0,0.00019166,2]
[370328694,1751962240607,-151.0,0.00019166,2]
[370328695,1751962240616,-151.0,0.00019166,2]
[370328696,1751962240626,-151.0,0.00019166,2]
[370328697,1751962240635,-3420.18147752,0.00019166,2]
[370328698,1751962240644,-1006.37,0.00019168,3]
[370328699,1751962240654,-503.19,0.00019168,3]
[370328700,1751962240665,-251.59,0.00019168,3]
[370328701,1751962240674,-754.8,0.00019168,3]
[370328702,1751962240684,-500.0,0.00019173,2]
[370328703,1751962240694,-500.0,0.00019173,2]
[370328704,1751962240703,-500.0,0.00019173,2]
[370328705,1751962240713,-500.0,0.00019173,2]
[370328706,1751962240722,-500.0,0.00019173,2]
[370328707,1751962240731,-500.0,0.00019173,2]
[370328708,1751962240741,-314.65380603,0.00019173,2]
[370328709,1751962240754,-4.48159181,0.00019173,2]
[370328710,1751962240763,-252.88477179,0.00019173,2]
[370328774,1751962243042,-246.88641703,0.00019173,2]
[370328776,1751962243053,-228.79644943,0.00019173,2]
[370328799,1751962243275,-313.93497522,0.00019173,2]
[370328801,1751962243287,-500.0,0.00019173,2]
[370328803,1751962243297,-500.0,0.00019173,2]
[370328805,1751962243307,-504.85393292,0.00019173,2]
[370328807,1751962243316,-500.0,0.00019173,2]
[370328809,1751962243327,-500.0,0.00019173,2]
[370328811,1751962243337,-318.01987653,0.00019173,2]
[370328813,1751962243347,-500.0,0.00019173,2]
[370328815,1751962243357,-144.65462687,0.00019173,2]
[370328818,1751962243370,-61.59351466,0.00019173,2]
[370328820,1751962243380,-500.0,0.00019173,2]
[370328822,1751962243390,-403.44878664,0.00019173,2]
[370329039,1751962246275,-97.66623844,0.00019173,2]
[370329041,1751962246284,-500.0,0.00019173,2]
[370329043,1751962246294,-500.0,0.00019173,2]
[370329045,1751962246304,-500.0,0.00019173,2]
[370329047,1751962246314,-457.87433812,0.00019173,2]
[370329050,1751962246326,-42.12566188,0.00019173,2]
[370329052,1751962246335,-500.0,0.00019177,2]
[370329054,1751962246345,-383.85847776,0.00019177,2]
[370329056,1751962246354,-500.0,0.00019177,2]
[370329058,1751962246364,-500.0,0.00019177,2]
[370329060,1751962246374,-546.09899728,0.00019177,2]
[370329062,1751962246383,-500.0,0.00019177,2]
[370329064,1751962246393,-500.0,0.00019177,2]
[370329066,1751962246403,-500.0,0.00019177,2]
[370329068,1751962246412,-500.0,0.00019177,2]
[370329070,1751962246422,-500.0,0.00019177,2]
[370329072,1751962246432,-450.0,0.00019177,2]
[370329074,1751962246442,-500.0,0.00019177,2]
[370329076,1751962246452,-277.23231747,0.00019177,2]
[370329078,1751962246461,-500.0,0.00019177,2]
[370329080,1751962246471,-192.52676,0.00019178,2]
[370329082,1751962246481,-192.52676,0.00019178,2]
[370329084,1751962246491,-192.52676,0.00019178,2]
[370329086,1751962246500,-192.52676,0.00019178,2]
[370329088,1751962246510,-192.52676,0.00019178,2]
[370329090,1751962246520,-192.52676,0.00019178,2]
[370329092,1751962246529,-192.52676,0.00019178,2]
[370329094,1751962246539,-192.52676,0.00019178,2]
[370329096,1751962246548,-192.52676,0.00019178,2]
[370329098,1751962246558,-192.52676,0.00019178,2]
[370329100,1751962246568,-460.0,0.00019178,2]
[370329102,1751962246578,-460.0,0.00019178,2]
[370329104,1751962246588,-291.27136185,0.00019178,2]
[370329106,1751962246597,-460.0,0.00019178,2]
[370329108,1751962246606,-151.0,0.00019178,2]
[370329110,1751962246616,-151.0,0.00019178,2]
[370329112,1751962246625,-151.0,0.00019178,2]
[370329114,1751962246635,-151.0,0.00019178,2]
[370329116,1751962246645,-151.0,0.00019178,2]
[370329118,1751962246655,-151.0,0.00019178,2]
[370329120,1751962246664,-151.0,0.00019178,2]
[370329122,1751962246674,-151.0,0.00019178,2]
[370329124,1751962246684,-151.0,0.00019178,2]
[370329126,1751962246694,-151.0,0.00019178,2]
[370329128,1751962246703,-460.0,0.00019178,2]
[370329130,1751962246713,-500.0,0.00019178,2]
[370329132,1751962246723,-460.0,0.00019178,2]
[370329149,1751962246875,-151.0,0.00019178,2]
[370329151,1751962246884,-151.0,0.00019178,2]
[370329153,1751962246895,-151.0,0.00019178,2]
[370329155,1751962246906,-171.676387,0.00019178,2]
[370329157,1751962246915,-437.00788135,0.00019178,2]
[370329159,1751962246924,-460.0,0.00019178,2]
[370329161,1751962246934,-460.0,0.00019178,2]
[370329163,1751962246943,-460.0,0.00019178,2]
[370329164,1751962246952,-253.876506,0.00019178,2]
[370329166,1751962246962,-461.81608402,0.00019178,2]
[370329168,1751962246971,-151.0,0.00019178,2]
[370329170,1751962246980,-151.0,0.00019178,2]
[370329172,1751962246989,-151.0,0.00019178,2]
[370329174,1751962246999,-151.0,0.00019178,2]
[370329176,1751962247008,-133.60842936,0.00019178,2]
[370331578,1751962302968,222.70571077,0.00025204,120]
[370331579,1751962519195,671.27864467,0.000181,9]
[370331580,1751963206116,-153.27350769,0.00018073,2]
[370331582,1751963213808,24900.0,0.00017522,2]
[370331608,1751963282744,178.29616747,0.0002465,60]
[370331610,1751963326419,39225.65093063,0.00018,2]
[370331615,1751963368601,164.0,0.000273,120]
[370331616,1751963369643,164.0,0.000273,120]
[370331617,1751963370347,164.0,0.000273,120]
[370331618,1751963370890,164.0,0.000273,120]
[370331619,1751963371593,164.0,0.000273,120]
[370331620,1751963372244,164.0,0.000273,120]
[370331621,1751963372728,164.0,0.000273,120]
[370331622,1751963373150,164.0,0.000273,120]
[370331623,1751963373594,164.0,0.000273,120]
[370331627,1751963376174,164.0,0.000273,120]
[370331628,1751963377055,164.0,0.000273,120]
[370331629,1751963378042,164.0,0.000273,120]
[370331630,1751963378879,164.0,0.000273,120]
[370331631,1751963379754,164.0,0.000273,120]
[370331632,1751963380473,164.0,0.000273,120]
[370331633,1751963381213,164.0,0.000273,120]
[370331634,1751963381802,164.0,0.000273,120]
[370331635,1751963382469,164.0,0.000273,120]
[370331636,1751963383140,164.0,0.000273,120]
[370331637,1751963383739,164.0,0.000273,120]
[370331638,1751963384369,164.0,0.000273,120]
[370331639,1751963385020,164.0,0.000273,120]
[370331640,1751963385623,164.0,0.000273,120]
[370331641,1751963386298,164.0,0.000273,120]
[370331642,1751963386906,164.0,0.000273,120]
[370331643,1751963387753,164.0,0.000273,120]
[370331644,1751963388477,164.0,0.000273,120]
[370331645,1751963388916,164.0,0.000273,120]
[370331646,1751963389488,164.0,0.000273,120]
[370331647,1751963390014,164.0,0.000273,120]
[370331648,1751963390544,164.0,0.000273,120]
[370331649,1751963390849,164.0,0.000273,120]
[370331650,1751963392165,164.0,0.000273,120]
[370331651,1751963393369,164.0,0.000273,120]
[370331652,1751963393709,164.0,0.000273,120]
[370331653,1751963395097,164.0,0.000273,120]
[370331654,1751963396006,164.0,0.000273,120]
[370331655,1751963396949,164.0,0.000273,120]
[370331656,1751963397792,164.0,0.000273,120]
[370331657,1751963398668,164.0,0.000273,120]
[370331658,1751963399761,164.0,0.000273,120]
[370331662,1751963409834,164.0,0.000273,120]
[370331663,1751963414133,286.068713,0.00017528,2]
[370331664,1751963424163,164.0,0.000273,120]
[370331706,1751963432295,-0.00017177,0.00018073,2]
[370331709,1751963432304,-156.01336864,0.00018323,3]
[370331710,1751963432314,-236.51388626,0.00018423,2]
[370331712,1751963432326,-1778.12942499,0.00018423,2]
[370331714,1751963432335,-15.1590074,0.00018475,2]
[370331716,1751963432347,-1020.72546052,0.00018475,2]
[370331717,1751963432358,-54.01620429,0.000185,2]
[370331718,1751963432369,-4011.22651731,0.000185,2]
[370331719,1751963432379,-1200.0,0.00018563,2]
[370331720,1751963432388,-300.0,0.00018564,2]
[370331721,1751963432397,-300.0,0.00018564,2]
[370331722,1751963432407,-300.0,0.00018564,2]
[370331723,1751963432417,-151.0,0.00018565,2]
[370331725,1751963432427,-887.17,0.00018566,3]
[370331726,1751963432435,-443.58,0.00018566,3]
[370331728,1751963432444,-221.79,0.00018566,3]
[370331729,1751963432454,-665.41,0.00018566,3]
[370331731,1751963432463,-16049.07480387,0.00018566,2]
[370331745,1751963432642,-16704.93108646,0.00018566,2]
[370331747,1751963432652,-500.0,0.00018573,2]
[370331749,1751963432662,-500.0,0.00018573,2]
[370331751,1751963432672,-500.0,0.00018573,2]
[370331753,1751963432682,-500.0,0.00018573,2]
[370331755,1751963432691,-500.0,0.00018575,2]
[370331757,1751963432701,-1633.27018244,0.00018575,2]
[370331759,1751963432710,-647.2211092,0.00018575,2]
[370331761,1751963432719,-1633.27018244,0.00018575,2]
[370331763,1751963432729,-1633.27018244,0.00018575,2]
[370331765,1751963432739,-1633.27018244,0.00018575,2]
[370331767,1751963432748,-1633.27018244,0.00018575,2]
[370331769,1751963432757,-1633.27018244,0.00018575,2]
[370331771,1751963432767,-1633.27018244,0.00018575,2]
[370331773,1751963432776,-1633.27018244,0.00018575,2]
[370331775,1751963432786,-1633.27018244,0.00018575,2]
[370331777,1751963432795,-1633.27018244,0.00018575,2]
[370331779,1751963432804,-1633.27018244,0.00018575,2]
[370331781,1751963432814,-1633.27018244,0.00018575,2]
[370331783,1751963432824,-1633.27018244,0.00018575,2]
[370331785,1751963432833,-1633.27018244,0.00018575,2]
[370331787,1751963432842,-1633.27018244,0.00018575,2]
[370331789,1751963432852,-1633.27018244,0.00018575,2]
[370331791,1751963432861,-1633.27018244,0.00018575,2]
[370331793,1751963432870,-1633.27018244,0.00018575,2]
[370331795,1751963432880,-1633.27018244,0.00018575,2]
[370331797,1751963432888,-1633.27018244,0.00018575,2]
[370331799,1751963432897,-1633.27018244,0.00018575,2]
[370331801,1751963432907,-2352.27516355,0.00018575,2]
[370331803,1751963432917,-2352.27516355,0.00018575,2]
[370331805,1751963432926,-2352.27516355,0.00018575,2]
[370331807,1751963432936,-2352.27516355,0.00018575,2]
[370331809,1751963432945,-2352.27516355,0.00018575,2]
[370331810,1751963432955,-2352.27516355,0.00018575,2]
[370331812,1751963432964,-2352.27516355,0.00018575,2]
[370331814,1751963432974,-2352.27516355,0.00018575,2]
[370331816,1751963432983,-2352.27516355,0.00018575,2]
[370331818,1751963432993,-2352.27516355,0.00018575,2]
[370331821,1751963433013,-151.3781191,0.00018575,2]
[370331823,1751963433023,-151.0,0.00018575,2]
[370331826,1751963433035,-151.0,0.00018575,2]
[370331828,1751963433045,-151.0,0.00018575,2]
[370331830,1751963433056,-500.0,0.00018575,2]
[370331832,1751963433067,-151.0,0.00018575,2]
[370331834,1751963433078,-500.0,0.00018575,2]
[370331836,1751963433088,-151.0,0.00018575,2]
[370331838,1751963433098,-226.96125665,0.00018575,2]
[370331840,1751963433109,-272.24499204,0.00018575,2]
[370331842,1751963433119,-151.0,0.00018575,2]
[370331844,1751963433130,-151.33594804,0.00018575,2]
[370331846,1751963433140,-500.0,0.00018575,2]
[370331848,1751963433150,-500.0,0.00018575,2]
[370331850,1751963433160,-151.0,0.00018575,2]
[370331852,1751963433171,-151.0,0.00018575,2]
[370331854,1751963433181,-153.02299337,0.00018575,2]